fUST/lending_fUST_20250214
["ID","MTS","AMOUNT","RATE_DAILY","PERIOD"]
[353066552,1739539837631,-500.0,0.00013698,2]
[353066553,1739539837643,-500.0,0.00013698,2]
[353066555,1739539837652,-500.0,0.00013698,2]
[353066556,1739539837663,-501.27919834,0.00013698,2]
[353066557,1739539837672,-500.0,0.00013698,2]
[353066558,1739539837681,-500.0,0.00013698,2]
[353066559,1739539837691,-639.63,0.00013698,2]
[353066560,1739539837700,-500.0,0.00013698,2]
[353066561,1739539837709,-501.32412778,0.00013698,2]
[353066562,1739539837718,-500.0,0.00013698,2]
[353066563,1739539837727,-500.0,0.00013698,2]
[353066564,1739539837737,-500.0,0.00013698,2]
[353066565,1739539837747,-544.44013558,0.00013698,2]
[353066566,1739539837756,-500.0,0.00013698,2]
[353066567,1739539837765,-500.0,0.00013698,2]
[353066568,1739539837775,-500.0,0.00013698,2]
[353066569,1739539837784,-500.0,0.00013698,2]
[353066570,1739539837793,-504.69508463,0.00013698,2]
[353066571,1739539837802,-500.0,0.00013698,2]
[353066572,1739539837811,-500.0,0.00013698,2]
[353066573,1739539837820,-500.0,0.00013698,2]
[353066574,1739539837829,-500.0,0.00013698,2]
[353066575,1739539837839,-500.0,0.00013698,2]
[353066576,1739539837851,-500.0,0.00013698,2]
[353066577,1739539837861,-500.0,0.00013698,2]
[353066578,1739539837870,-349.02260592,0.00013698,2]
[353066579,1739539837891,-150.97739408,0.00013698,2]
[353066580,1739539837900,-500.0,0.00013698,2]
[353066581,1739539837911,-182.84958592,0.00013698,2]
[353066582,1739539837927,-317.15041408,0.00013698,2]
[353066583,1739539837936,-500.0,0.00013698,2]
[353066584,1739539837945,-500.0,0.00013698,2]
[353066585,1739539837955,-706.19,0.00013698,2]
[353066586,1739539837964,-502.35062713,0.00013698,2]
[353066587,1739539837975,-500.0,0.00013698,2]
[353066588,1739539837985,-500.0,0.00013698,2]
[353066589,1739539837995,-1561.45802943,0.00013698,2]
[353066590,1739539838006,-260.81197057,0.00013698,2]
[353066591,1739539838016,-500.0,0.00013698,2]
[353066592,1739539838025,-500.0,0.00013698,2]
[353066593,1739539838035,-478.69812159,0.00013698,2]
[353066594,1739539838044,-1477.61,0.00013698,2]
[353066595,1739539838054,-503.9392517,0.00013698,2]
[353066596,1739539838063,-124.14065614,0.00013698,2]
[353066597,1739539838076,-377.62776645,0.00013698,2]
[353066598,1739539838086,-500.0,0.00013698,2]
[353066599,1739539838096,-500.0,0.00013698,2]
[353066600,1739539838106,-373.216291,0.00013698,2]
[353066601,1739539838115,-500.0,0.00013698,2]
[353066602,1739539838125,-187.55594255,0.00013698,2]
[353066603,1739539838464,-312.44405745,0.00013698,2]
[353066604,1739539838474,-504.51035314,0.00013698,2]
[353066605,1739539838490,-503.26975791,0.00013698,2]
[353066606,1739539838499,-500.0,0.00013698,2]
[353066607,1739539838509,-502.86180634,0.00013698,2]
[353066608,1739539838519,-500.0,0.00013698,2]
[353066609,1739539838530,-503.83052297,0.00013698,2]
[353066610,1739539838539,-501.09396162,0.00013698,2]
[353066611,1739539838549,-500.0,0.00013698,2]
[353066612,1739539838558,-500.0,0.00013698,2]
[353066613,1739539838568,-500.0,0.00013698,2]
[353066614,1739539838579,-263.2950686,0.00013698,2]
[353066615,1739539838588,-500.0,0.00013698,2]
[353066616,1739539838598,-543.57444548,0.00013698,2]
[353066617,1739539838608,-503.58700947,0.00013698,2]
[353066618,1739539838617,-500.0,0.00013698,2]
[353066619,1739539838626,-503.3527084,0.00013698,2]
[353066620,1739539838636,-500.0,0.00013698,2]
[353066621,1739539838645,-506.43348884,0.00013698,2]
[353066622,1739539838654,-500.26325349,0.00013698,2]
[353066623,1739539838666,-500.0,0.00013698,2]
[353066624,1739539838676,-541.51,0.00013698,2]
[353066625,1739539838687,-503.07941548,0.00013698,2]
[353066626,1739539838697,-500.0,0.00013698,2]
[353066627,1739539838706,-500.0,0.00013698,2]
[353066628,1739539838715,-500.0,0.00013698,2]
[353066629,1739539838726,-203.27751335,0.00013698,2]
[353066630,1739539838736,-500.0,0.00013698,2]
[353066631,1739539838745,-500.0,0.00013698,2]
[353066632,1739539838756,-1268.74,0.00013698,2]
[353066633,1739539838765,-500.0,0.00013698,2]
[353066634,1739539838775,-500.0,0.00013698,2]
[353066635,1739539838784,-500.0,0.00013698,2]
[353066636,1739539838794,-500.0,0.00013698,2]
[353066637,1739539838804,-274.44125279,0.00013698,2]
[353066638,1739539838814,-500.58289261,0.00013698,2]
[353066639,1739539838823,-500.0,0.00013698,2]
[353066640,1739539838833,-3786.89,0.00013698,2]
[353066641,1739539838843,-246.0496229,0.00013698,2]
[353066642,1739539838852,-500.0,0.00013698,2]
[353066643,1739539838862,-500.0,0.00013698,2]
[353066644,1739539838872,-504.15662806,0.00013698,2]
[353066645,1739539838882,-500.0,0.00013698,2]
[353066646,1739539838892,-8303.98,0.00013698,2]
[353066647,1739539838901,-500.0,0.00013698,2]
[353066648,1739539838913,-1587.22,0.00013698,2]
[353066649,1739539838923,-500.0,0.00013698,2]
[353066650,1739539838933,-500.0,0.00013698,2]
[353066651,1739539838942,-749.1,0.00013698,2]
[353066652,1739539838952,-2509.14,0.00013698,2]
[353066653,1739539838963,-502.54092614,0.00013698,2]
[353066654,1739539838975,-500.0,0.00013698,2]
[353066655,1739539838985,-15683.07,0.00013698,2]
[353066656,1739539838995,-500.0,0.00013698,2]
[353066657,1739539839005,-500.0,0.00013698,2]
[353066658,1739539839014,-500.0,0.00013698,2]
[353066659,1739539839024,-500.0,0.00013698,2]
[353066660,1739539839035,-500.0,0.00013698,2]
[353066661,1739539839045,-500.0,0.00013698,2]
[353066662,1739539839055,-500.0,0.00013698,2]
[353066663,1739539839064,-500.0,0.00013698,2]
[353066664,1739539839073,-500.0,0.00013698,2]
[353066665,1739539839083,-500.0,0.00013698,2]
[353066666,1739539839092,-675.86,0.00013698,2]
[353066667,1739539839101,-378.3472983,0.00013698,2]
[353066668,1739539839110,-500.0,0.00013698,2]
[353066669,1739539839120,-1429.93,0.00013698,2]
[353066670,1739539839129,-500.0,0.00013698,2]
[353066671,1739539839139,-500.0,0.00013698,2]
[353066672,1739539839149,-500.0,0.00013698,2]
[353066673,1739539839158,-1498.76,0.00013698,2]
[353066674,1739539839168,-861.05,0.00013698,2]
[353066675,1739539839178,-1955.84,0.00013698,2]
[353066676,1739539839188,-503.89828001,0.00013698,2]
[353066677,1739539839197,-500.0,0.00013698,2]
[353066678,1739539839206,-288.91763651,0.00013698,2]
[353066679,1739539839216,-500.0,0.00013698,2]
[353066680,1739539839225,-1329.94,0.00013698,2]
[353066681,1739539839235,-500.0,0.00013698,2]
[353066682,1739539839244,-500.0,0.00013698,2]
[353066683,1739539839254,-4584.9,0.00013698,2]
[353066684,1739539839263,-642.84892096,0.00013698,2]
[353066685,1739539839273,-500.46450138,0.00013698,2]
[353066686,1739539839282,-500.0,0.00013698,2]
[353066687,1739539839292,-500.0,0.00013698,2]
[353066688,1739539839301,-500.0,0.00013698,2]
[353066689,1739539839311,-48822.54,0.00013698,2]
[353066690,1739539839321,-500.0,0.00013698,2]
[353066691,1739539839331,-2400.69,0.00013698,2]
[353066692,1739539839341,-500.0,0.00013698,2]
[353066693,1739539839350,-500.0,0.00013698,2]
[353066694,1739539839360,-500.0,0.00013698,2]
[353066695,1739539839369,-500.0,0.00013698,2]
[353066696,1739539839379,-5785.21,0.00013698,2]
[353066697,1739539839389,-500.98793775,0.00013698,2]
[353066698,1739539839399,-459.51609353,0.00013698,2]
[353066699,1739539839408,-500.0,0.00013698,2]
[353066700,1739539839419,-504.26442328,0.00013698,2]
[353066701,1739539839429,-1781.63,0.00013698,2]
[353066702,1739539839438,-500.0,0.00013698,2]
[353066703,1739539839447,-503.47191045,0.00013698,2]
[353066704,1739539839457,-2342.77,0.00013698,2]
[353066705,1739539839467,-500.0,0.00013698,2]
[353066706,1739539839477,-500.0,0.00013698,2]
[353066707,1739539839488,-500.0,0.00013698,2]
[353066708,1739539839499,-190.05980403,0.00013698,2]
[353066709,1739539839509,-20205.81,0.00013698,2]
[353066710,1739539839519,-776.38,0.00013698,2]
[353066711,1739539839530,-500.0,0.00013698,2]
[353066712,1739539839540,-501.70973441,0.00013698,2]
[353066713,1739539839550,-1432.28,0.00013698,2]
[353066714,1739539839560,-538.45,0.00013698,2]
[353066715,1739539839570,-768.59,0.00013698,2]
[353066716,1739539839580,-500.0,0.00013698,2]
[353066717,1739539839590,-768.59,0.00013698,2]
[353066718,1739539839599,-768.59,0.00013698,2]
[353066719,1739539839609,-768.59,0.00013698,2]
[353066720,1739539839617,-768.59,0.00013698,2]
[353066721,1739539839627,-768.59,0.00013698,2]
[353066722,1739539839637,-768.59,0.00013698,2]
[353066723,1739539839647,-768.59,0.00013698,2]
[353066724,1739539839657,-768.59,0.00013698,2]
[353066725,1739539839669,-768.59,0.00013698,2]
[353066726,1739539839678,-768.59,0.00013698,2]
[353066727,1739539839688,-768.59,0.00013698,2]
[353066728,1739539839698,-768.59,0.00013698,2]
[353066729,1739539839708,-768.59,0.00013698,2]
[353066730,1739539839718,-768.59,0.00013698,2]
[353066731,1739539839728,-768.59,0.00013698,2]
[353066732,1739539839738,-768.59,0.00013698,2]
[353066733,1739539839747,-500.0,0.00013698,2]
[353066734,1739539839757,-1415.01,0.00013698,2]
[353066735,1739539839766,-500.0,0.00013698,2]
[353066736,1739539839776,-564.13,0.00013698,2]
[353066737,1739539839785,-2331.54,0.00013698,2]
[353066738,1739539839794,-500.0,0.00013698,2]
[353066739,1739539839803,-500.0,0.00013698,2]
[353066740,1739539839813,-500.0,0.00013698,2]
[353066741,1739539839822,-500.0,0.00013698,2]
[353066742,1739539839832,-500.0,0.00013698,2]
[353066743,1739539839841,-2623.98,0.00013698,2]
[353066744,1739539839851,-500.0,0.00013698,2]
[353066745,1739539839861,-500.0,0.00013698,2]
[353066746,1739539839871,-500.0,0.00013698,2]
[353066747,1739539839880,-500.0,0.00013698,2]
[353066748,1739539839890,-500.0,0.00013698,2]
[353066749,1739539839899,-500.0,0.00013698,2]
[353066750,1739539839909,-500.0,0.00013698,2]
[353066751,1739539839925,-500.0,0.00013698,2]
[353066752,1739539839935,-500.0,0.00013698,2]
[353066753,1739539839944,-654.95,0.00013698,2]
[353066754,1739539839954,-500.0,0.00013698,2]
[353066755,1739539839964,-500.0,0.00013698,2]
[353066756,1739539839974,-503.50750254,0.00013698,2]
[353066757,1739539839984,-500.0,0.00013698,2]
[353066758,1739539839994,-500.0,0.00013698,2]
[353066759,1739539840004,-451.19675204,0.00013698,2]
[353066760,1739539840013,-500.0,0.00013698,2]
[353066761,1739539840023,-509.81387919,0.00013698,2]
[353066762,1739539840033,-963.59,0.00013698,2]
[353066763,1739539840043,-500.73809489,0.00013698,2]
[353066764,1739539840052,-500.0,0.00013698,2]
[353066765,1739539840061,-500.0,0.00013698,2]
[353066766,1739539840071,-500.0,0.00013698,2]
[353066767,1739539840080,-500.0,0.00013698,2]
[353066769,1739539840090,-500.0,0.00013698,2]
[353066770,1739539840100,-500.0,0.00013698,2]
[353066771,1739539840109,-517.97320949,0.00013698,2]
[353066772,1739539840118,-501.80990277,0.00013698,2]
[353066773,1739539840128,-500.0,0.00013698,2]
[353066774,1739539840137,-500.0,0.00013698,2]
[353066775,1739539840146,-500.0,0.00013698,2]
[353066776,1739539840156,-658.17,0.00013698,2]
[353066777,1739539840168,-4080.11,0.00013698,2]
[353066778,1739539840177,-500.0,0.00013698,2]
[353066779,1739539840187,-503.70163895,0.00013698,2]
[353066780,1739539840197,-501.23865578,0.00013698,2]
[353066781,1739539840206,-503.34223926,0.00013698,2]
[353066782,1739539840215,-1623.61,0.00013698,2]
[353066783,1739539840224,-500.0,0.00013698,2]
[353066784,1739539840234,-507.09090585,0.00013698,2]
[353066785,1739539840243,-3731.6,0.00013698,2]
[353066786,1739539840253,-8825.51,0.00013698,2]
[353066787,1739539840263,-500.0,0.00013698,2]
[353066789,1739539840272,-500.0,0.00013698,2]
[353066790,1739539840282,-836.95,0.00013698,2]
[353066791,1739539840291,-590.78,0.00013698,2]
[353066792,1739539840301,-2080.49,0.00013698,2]
[353066793,1739539840310,-500.0,0.00013698,2]
[353066794,1739539840320,-500.0,0.00013698,2]
[353066795,1739539840330,-500.0,0.00013698,2]
[353066796,1739539840339,-500.0,0.00013698,2]
[353066797,1739539840349,-4707.18,0.00013698,2]
[353066798,1739539840359,-1788.65,0.00013698,2]
[353066799,1739539840369,-500.22979174,0.00013698,2]
[353066800,1739539840378,-401.64734732,0.00013698,2]
[353066801,1739539840388,-500.48654216,0.00013698,2]
[353066802,1739539840398,-500.0,0.00013698,2]
[353066803,1739539840498,-500.0,0.00013698,2]
[353066804,1739539840508,-500.0,0.00013698,2]
[353066805,1739539840518,-500.0,0.00013698,2]
[353066806,1739539840528,-503.69583216,0.00013698,2]
[353066807,1739539840537,-699.44,0.00013698,2]
[353066808,1739539840547,-501.17098001,0.00013698,2]
[353066809,1739539840556,-500.0,0.00013698,2]
[353066810,1739539840566,-502.90340593,0.00013698,2]
[353066811,1739539840576,-683.47,0.00013698,2]
[353066812,1739539840586,-4062.23,0.00013698,2]
[353066813,1739539840595,-500.0,0.00013698,2]
[353066814,1739539840605,-534.08,0.00013698,2]
[353066815,1739539840614,-500.0,0.00013698,2]
[353066816,1739539840623,-500.0,0.00013698,2]
[353066817,1739539840633,-506.13147615,0.00013698,2]
[353066818,1739539840642,-500.0,0.00013698,2]
[353066819,1739539840652,-509.35374891,0.00013698,2]
[353066820,1739539840662,-500.0,0.00013698,2]
[353066821,1739539840673,-196.342821,0.00013699,2]
[353066822,1739539840682,-173.00971,0.00013699,2]
[353066823,1739539840691,-500.0,0.00013699,2]
[353066824,1739539840701,-500.0,0.00013699,2]
[353066825,1739539840710,-534.39400282,0.00013699,2]
[353066826,1739539840719,-500.0,0.00013699,2]
[353066827,1739539840729,-500.0,0.00013699,2]
[353066828,1739539840738,-500.0,0.00013699,2]
[353066829,1739539840747,-500.0,0.00013699,2]
[353066830,1739539840757,-500.0,0.00013699,2]
[353066831,1739539840766,-500.0,0.00013699,2]
[353066832,1739539840775,-500.0,0.00013699,2]
[353066833,1739539840785,-151.0,0.000137,2]
[353066834,1739539840794,-151.0,0.000137,2]
[353066835,1739539840804,-151.0,0.000137,2]
[353066836,1739539840813,-169.57113383,0.000137,2]
[353066837,1739539840822,-169.57113383,0.000137,2]
[353066838,1739539840832,-169.57,0.000137,2]
[353066839,1739539840841,-5852.65890225,0.000137,2]
[353066840,1739539840850,-152.0,0.00013742,2]
[353066841,1739539840862,-781.81581324,0.0001377,2]
[353066842,1739539840872,-768.59,0.00013772,2]
[353066843,1739539840882,-500.0,0.00013773,2]
[353066844,1739539840892,-500.0,0.00013773,2]
[353066845,1739539840901,-500.0,0.00013773,2]
[353066846,1739539840910,-500.0,0.00013773,2]
[353066847,1739539840920,-500.0,0.00013773,2]
[353066848,1739539840929,-500.46076946,0.00013773,2]
[353066849,1739539840938,-500.42245772,0.00013773,2]
[353066850,1739539840947,-500.8459099,0.00013773,2]
[353066851,1739539840956,-500.0,0.00013773,2]
[353066852,1739539840965,-500.64295477,0.00013773,2]
[353066853,1739539840975,-500.0,0.00013773,2]
[353066854,1739539840984,-500.0,0.00013773,2]
[353066855,1739539840994,-500.37390415,0.00013773,2]
[353066856,1739539841003,-500.27799977,0.00013773,2]
[353066857,1739539841013,-500.0,0.00013773,2]
[353066858,1739539841022,-635.95312818,0.00013773,2]
[353066859,1739539841034,-162.88111807,0.00013773,2]
[353066860,1739539841043,-500.0,0.00013773,2]
[353066861,1739539841053,-500.0,0.00013773,2]
[353066862,1739539841062,-596.623644,0.00013773,2]
[353066863,1739539841071,-500.0,0.00013773,2]
[353066864,1739539841081,-500.0,0.00013773,2]
[353066865,1739539841090,-500.08682228,0.00013773,2]
[353066866,1739539841099,-500.0,0.00013773,2]
[353066867,1739539841108,-7438.69753278,0.00013773,2]
[353066868,1739539841118,-768.59,0.00013777,2]
[353066869,1739539841128,-768.59,0.00013777,2]
[353066870,1739539841137,-768.59,0.00013777,2]
[353066871,1739539841146,-768.59,0.00013777,2]
[353066872,1739539841155,-768.59,0.00013777,2]
[353066873,1739539841169,-768.79,0.00013777,2]
[353066874,1739539841179,-258583.35673119,0.00013778,2]
[353066875,1739539841188,-160.0,0.00013779,2]
[353066876,1739539841198,-500.0,0.00013779,2]
[353066877,1739539841208,-229.65613023,0.00013779,2]
[353066878,1739539841217,-207.27451284,0.00013779,2]
[353066879,1739539841227,-500.0,0.00013779,2]
[353066880,1739539841236,-500.0,0.00013779,2]
[353066881,1739539841245,-500.0,0.0001378,2]
[353066882,1739539841255,-526.45087494,0.0001378,2]
[353066883,1739539841265,-499.92430052,0.0001378,2]
[353066884,1739539841274,-253.92924666,0.0001378,2]
[353066885,1739539841283,-501.18998335,0.0001378,2]
[353066886,1739539841292,-500.0,0.0001378,2]
[353066887,1739539841301,-500.0,0.0001378,2]
[353066888,1739539841311,-500.0,0.0001378,2]
[353066889,1739539841320,-500.0,0.0001378,2]
[353066890,1739539841330,-500.0,0.0001378,2]
[353066891,1739539841339,-500.0,0.0001378,2]
[353066892,1739539841348,-510.31211764,0.0001378,2]
[353066893,1739539841358,-966.16,0.0001378,2]
[353066894,1739539841367,-500.0,0.0001378,2]
[353066895,1739539841376,-500.0,0.0001378,2]
[353066896,1739539841386,-500.0,0.0001378,2]
[353066897,1739539841395,-500.0,0.0001378,2]
[353066898,1739539841406,-500.0,0.0001378,2]
[353066899,1739539841418,-500.0,0.0001378,2]
[353066900,1739539841427,-502.74899362,0.0001378,2]
[353066901,1739539841437,-505.29099796,0.0001378,2]
[353066902,1739539841447,-500.0,0.0001378,2]
[353066903,1739539841457,-512.98125807,0.0001378,2]
[353066904,1739539841467,-500.0,0.0001378,2]
[353066905,1739539841477,-500.0,0.0001378,2]
[353066906,1739539841488,-506.93085562,0.0001378,2]
[353066907,1739539841502,-500.0,0.0001378,2]
[353066908,1739539841514,-500.0,0.0001378,2]
[353066909,1739539841523,-503.40472036,0.0001378,2]
[353066910,1739539841534,-500.0,0.0001378,2]
[353066911,1739539841544,-541.85448475,0.0001378,2]
[353066912,1739539841553,-500.0,0.0001378,2]
[353066913,1739539841563,-500.0,0.0001378,2]
[353066914,1739539841572,-500.0,0.0001378,2]
[353066915,1739539841582,-567.77148428,0.0001378,2]
[353066916,1739539841591,-500.0,0.0001378,2]
[353066917,1739539841601,-500.0,0.0001378,2]
[353066918,1739539841610,-500.0,0.0001378,2]
[353066919,1739539841619,-500.0,0.0001378,2]
[353066920,1739539841628,-500.0,0.0001378,2]
[353066921,1739539841638,-503.52056844,0.0001378,2]
[353066922,1739539841647,-500.0,0.0001378,2]
[353066923,1739539841657,-249.58592137,0.0001378,2]
[353066924,1739539841669,-500.0,0.0001378,2]
[353066925,1739539841679,-502.90476339,0.0001378,2]
[353066926,1739539841688,-500.0,0.0001378,2]
[353066927,1739539841698,-842.42,0.0001378,2]
[353066928,1739539841707,-500.0,0.0001378,2]
[353066929,1739539841717,-174.74641207,0.0001378,2]
[353066930,1739539841727,-500.0,0.0001378,2]
[353066931,1739539841736,-503.34058286,0.0001378,2]
[353066932,1739539841746,-500.0,0.0001378,2]
[353066933,1739539841755,-500.0,0.0001378,2]
[353066934,1739539841764,-500.0,0.0001378,2]
[353066935,1739539841774,-500.0,0.0001378,2]
[353066936,1739539841783,-500.0,0.0001378,2]
[353066937,1739539841796,-1088.81,0.0001378,2]
[353066938,1739539841808,-500.0,0.0001378,2]
[353066939,1739539841817,-500.0,0.0001378,2]
[353066940,1739539841827,-500.0,0.0001378,2]
[353066941,1739539841836,-500.0,0.0001378,2]
[353066942,1739539841845,-500.0,0.0001378,2]
[353066943,1739539841854,-817.56,0.0001378,2]
[353066944,1739539841863,-503.99027307,0.0001378,2]
[353066945,1739539841872,-625.78,0.0001378,2]
[353066946,1739539841881,-437.84854412,0.0001378,2]
[353066947,1739539841890,-500.0,0.0001378,2]
[353066948,1739539841899,-500.0,0.0001378,2]
[353066949,1739539841908,-500.0,0.0001378,2]
[353066950,1739539841920,-500.0,0.0001378,2]
[353066951,1739539841929,-605.01,0.0001378,2]
[353066952,1739539841938,-500.0,0.0001378,2]
[353066953,1739539841947,-500.0,0.0001378,2]
[353066954,1739539841956,-500.0,0.0001378,2]
[353066955,1739539841965,-500.0,0.0001378,2]
[353066956,1739539841974,-500.0,0.0001378,2]
[353066957,1739539841983,-958.07,0.0001378,2]
[353066958,1739539841992,-503.08832107,0.0001378,2]
[353066959,1739539842002,-500.0,0.0001378,2]
[353066960,1739539842013,-500.0,0.0001378,2]
[353066961,1739539842023,-1856.53,0.0001378,2]
[353066962,1739539842032,-1515.16,0.0001378,2]
[353066963,1739539842042,-585.48,0.0001378,2]
[353066964,1739539842051,-1888.61,0.0001378,2]
[353066965,1739539842060,-500.0,0.0001378,2]
[353066966,1739539842069,-500.0,0.0001378,2]
[353066967,1739539842078,-500.0,0.0001378,2]
[353066968,1739539842087,-500.0,0.0001378,2]
[353066969,1739539842096,-501.71373609,0.0001378,2]
[353066970,1739539842105,-500.0,0.0001378,2]
[353066971,1739539842115,-500.0,0.0001378,2]
[353066972,1739539842125,-500.0,0.0001378,2]
[353066973,1739539842135,-500.0,0.0001378,2]
[353066974,1739539842144,-507.75782006,0.0001378,2]
[353066975,1739539842153,-500.0,0.0001378,2]
[353066976,1739539842164,-500.0,0.0001378,2]
[353066977,1739539842174,-560.03647683,0.0001378,2]
[353066978,1739539842183,-500.0,0.0001378,2]
[353066979,1739539842192,-500.0,0.0001378,2]
[353066980,1739539842202,-500.0,0.0001378,2]
[353066981,1739539842211,-500.0,0.0001378,2]
[353066982,1739539842221,-500.0,0.0001378,2]
[353066983,1739539842230,-500.0,0.0001378,2]
[353066984,1739539842240,-500.0,0.0001378,2]
[353066985,1739539842249,-639.63,0.0001378,2]
[353066986,1739539842258,-500.0,0.0001378,2]
[353066987,1739539842267,-500.0,0.0001378,2]
[353066988,1739539842276,-500.0,0.0001378,2]
[353066989,1739539842286,-500.0,0.0001378,2]
[353066990,1739539842295,-500.0,0.0001378,2]
[353066991,1739539842304,-500.0,0.0001378,2]
[353066992,1739539842313,-500.0,0.0001378,2]
[353066993,1739539842322,-500.0,0.0001378,2]
[353066994,1739539842332,-500.0,0.0001378,2]
[353066995,1739539842341,-500.0,0.0001378,2]
[353066996,1739539842350,-500.0,0.0001378,2]
[353066997,1739539842360,-500.0,0.0001378,2]
[353066999,1739539842370,-500.0,0.0001378,2]
[353067001,1739539842379,-500.0,0.0001378,2]
[353067002,1739539842388,-706.19,0.0001378,2]
[353067003,1739539842484,-500.0,0.0001378,2]
[353067004,1739539842494,-500.0,0.0001378,2]
[353067005,1739539842504,-1822.27,0.0001378,2]
[353067006,1739539842513,-500.0,0.0001378,2]
[353067007,1739539842523,-1477.61,0.0001378,2]
[353067008,1739539842534,-500.0,0.0001378,2]
[353067009,1739539842543,-500.0,0.0001378,2]
[353067010,1739539842553,-563.7882657,0.0001378,2]
[353067011,1739539842564,-500.0,0.0001378,2]
[353067012,1739539842574,-500.0,0.0001378,2]
[353067013,1739539842583,-500.0,0.0001378,2]
[353067014,1739539842592,-500.0,0.0001378,2]
[353067015,1739539842602,-500.0,0.0001378,2]
[353067016,1739539842612,-541.51,0.0001378,2]
[353067017,1739539842621,-500.0,0.0001378,2]
[353067018,1739539842630,-500.0,0.0001378,2]
[353067019,1739539842640,-506.10550754,0.0001378,2]
[353067020,1739539842651,-1268.74,0.0001378,2]
[353067021,1739539842661,-500.0,0.0001378,2]
[353067022,1739539842671,-505.06077738,0.0001378,2]
[353067023,1739539842680,-500.0,0.0001378,2]
[353067024,1739539842690,-500.0,0.0001378,2]
[353067025,1739539842699,-3786.89,0.0001378,2]
[353067026,1739539842708,-500.0,0.0001378,2]
[353067027,1739539842718,-500.0,0.0001378,2]
[353067028,1739539842727,-8303.98,0.0001378,2]
[353067029,1739539842736,-1587.22,0.0001378,2]
[353067030,1739539842745,-500.0,0.0001378,2]
[353067031,1739539842755,-749.1,0.0001378,2]
[353067032,1739539842764,-2509.14,0.0001378,2]
[353067033,1739539842773,-500.0,0.0001378,2]
[353067034,1739539842784,-15683.07,0.0001378,2]
[353067036,1739539842793,-502.83772679,0.0001378,2]
[353067038,1739539842802,-500.0,0.0001378,2]
[353067039,1739539842812,-629.83837481,0.0001378,2]
[353067041,1739539842822,-151.75449317,0.0001378,2]
[353067044,1739539842834,-500.0,0.0001378,2]
[353067046,1739539842843,-238.80331441,0.0001378,2]
[353067049,1739539842853,-500.0,0.0001378,2]
[353067052,1739539842862,-500.0,0.0001378,2]
[353067054,1739539842872,-500.0,0.0001378,2]
[353067056,1739539842881,-675.86,0.0001378,2]
[353067059,1739539842890,-1429.93,0.0001378,2]
[353067061,1739539842899,-500.0,0.0001378,2]
[353067065,1739539842908,-500.0,0.0001378,2]
[353067067,1739539842920,-1498.76,0.0001378,2]
[353067069,1739539842929,-861.05,0.0001378,2]
[353067071,1739539842938,-1955.84,0.0001378,2]
[353067072,1739539842947,-501.26941097,0.0001378,2]
[353067073,1739539842957,-1329.94,0.0001378,2]
[353067074,1739539842966,-500.0,0.0001378,2]
[353067075,1739539842976,-502.63645887,0.0001378,2]
[353067076,1739539842985,-4584.9,0.0001378,2]
[353067077,1739539842995,-503.0558322,0.0001378,2]